Cogmind - Beta 14 @@@ ROGUE MODE // 2025.03.29 @ 14:20:48 Player: Botdroidmanbeing Result: Self-destructed Performance ------------- Evolutions (1) 500 Regions Visited (2) 400 Robots Destroyed (15) 75 Value Destroyed (361) 361 Prototype IDs (2) 40 Alien Tech Used (0) 0 Bonus (0) 0 TOTAL SCORE: 1376 Bonus ------- None Cogmind --------- Core Integrity 400/400 Matter 300/300 Energy 275/275 System Corruption 0% Temperature Cool (0) Movement Walking (400) Ox4 Location -9/Materials Parts ------- > --- POWER (2) -------- Ion Engine Light Ion Engine > --- PROPULSION (2) --- Aluminum Leg Aluminum Leg > --- UTILITY (2) ------ Heat Sink Huge Storage Unit > --- WEAPON (3) ------- Heavy EM Pulse Gun Autogun Autogun > --- INVENTORY (25) --- Light Ion Engine Aluminum Leg Small Battery (100) Small Battery (100) Medium Matter Pod (100) Heavy EM Pulse Gun Heavy EM Pulse Gun Small Laser Beam Cannon Assault Rifle Light Assault Rifle Improved Light Cannon Improved Light Cannon Improved Light Cannon Improved Light Cannon Datajack Flail Flail Peak State ------------ > --- POWER ------------ Light Ion Engine Light Ion Engine > --- PROPULSION ------- Aluminum Leg Aluminum Leg > --- UTILITY ---------- Huge Storage Unit Structural Scanner > --- WEAPON ----------- Heavy EM Pulse Gun Autogun Autogun > --- INVENTORY -------- Light Ion Engine Small Battery Small Battery Heavy EM Pulse Gun Heavy EM Pulse Gun Small Laser Beam Cannon Assault Rifle Light Assault Rifle Improved Light Cannon Improved Light Cannon Improved Light Cannon Improved Light Cannon Datajack Flail Flail [Rating: 14] Favorites ----------- Power Light Ion Engine Engine Light Ion Engine Propulsion Aluminum Leg Leg Aluminum Leg Wheel Compact Wheel Utility Huge Storage Unit Device Structural Scanner Storage Huge Storage Unit Weapon Autogun Energy Gun Small Laser Energy Cannon Beam Cannon Ballistic Gun Autogun Build | -11 -10 -9 ------- Run | Yrd Mat Mat Slots Evolved 2 | . . 2 Power 1 | . . 1 Propulsion . | . . . Utility . | . . . Weapon 1 | . . 1 Parts Attached 22 | 6 12 4 Power 5 | 1 2 2 Engine 5 | 1 2 2 Core . | . . . Reactor . | . . . Propulsion 4 | 2 2 . Treads . | . . . Leg 2 | . 2 . Wheel 2 | 2 . . Hover . | . . . Flight . | . . . Utility 6 | 1 4 1 Device 2 | . 1 1 Storage 4 | 1 3 . Processor . | . . . Hackware . | . . . Protection . | . . . Artifact . | . . . Weapon 7 | 2 4 1 Energy Gun 2 | 1 . 1 Energy Cannon 1 | . 1 . Ballistic Gun 4 | 1 3 . Ballistic Cannon . | . . . Launcher . | . . . Special Weapon . | . . . Impact Weapon . | . . . Slashing Weapon . | . . . Piercing Weapon . | . . . Special Melee Weapon . | . . . Unidentified Prototypes . | . . . Parts Lost . | . . . Power . | . . . Propulsion . | . . . Utility . | . . . Weapon . | . . . Highest Loss Streak . | . . . To Critical Strikes . | . . . Average Slot Usage (%) 98 | . 99 96 Engine 17 | . 14 22 Leg 16 | . 12 22 Wheel 9 | . 15 . Device 11 | . 11 11 Storage 14 | . 16 11 Energy Gun 6 | . 6 7 Energy Cannon 3 | . 5 . Ballistic Gun 18 | . 16 22 Peak Build Rating 14 | 6 10 14 Average Rating 9 | 3 7 13 On Entrance 5 | . 6 10 Naked Turns . | . . . Heaviest Build 168 | 13 168 98 Greatest Support 26 | 26 26 20 Greatest Overweight (x) 6 | . 6 4 Average Overweight (x) 3 | . 3 4 Largest Inventory Capacity 25 | 8 25 25 Average Capacity 23 | 7 24 25 Most Carried 18 | 4 13 18 Average Carried 11 | 2 8 16 Final Capacity 25 | 8 25 25 Final Carried 18 | 4 13 18 Class Distribution -------------------- 73% | Mutant 26% | Gunner Dominant Class ---------------- Mutant | -10/Materials Gunner | -9/Materials Resources | -11 -10 -9 ----------- Run | Yrd Mat Mat Matter Collected 647 | 228 235 184 Remotely . | . . . Salvage Created 458 | . 374 84 Parts 30 | . 26 4 Haulers Intercepted . | . . . Recyclers Shooed . | . . . Parts Field Recycled . | . . . Retrieved Matter . | . . . Parts Self-Destructed . | . . . Prevented . | . . . Kills | -11 -10 -9 ------- Run | Yrd Mat Mat Combat Hostiles Destroyed 14 | . 12 2 Guns 10 | . 8 2 Cannons 4 | . 4 . Classes Destroyed 3 | . 3 . Watcher 1 | . 1 . Swarmer 6 | . 6 . Grunt 8 | . 6 2 Best Kill Streak 3 | . 3 2 Combat Bots Only 3 | . 3 2 Max Kills in Single Turn 1 | . 1 1 Gunslinging . | . . . Exploded . | . . . Melee . | . . . Uniques/NPCs Destroyed . | . . . Combat | -11 -10 -9 -------- Run | Yrd Mat Mat Hostile Shots Fired 72 | . 68 4 Missed 24 | . 23 1 Damage Taken 493 | . 460 33 Core 79 | . 79 . Absorbed by Shields . | . . . Core Remaining (%) 84 | 100 68 . Volleys Fired 38 | . 35 3 Largest 3 | . 2 3 Hottest 91 | . 80 91 Shots Fired 77 | . 69 8 Gun 57 | . 49 8 Cannon 20 | . 20 . Launcher . | . . . Special . | . . . Kinetic 41 | . 35 6 Thermal 34 | . 34 . Explosive . | . . . Electromagnetic 2 | . . 2 Robot Hit Streak 8 | . 8 3 Robot Miss Streak 3 | . 3 2 Penetration Max . | . . . Secondary Targets . | . . . Shots Hit Robots 49 | . 46 3 Core Hits 19 | . 16 3 Critical Kills . | . . . Critical Parts Destroyed . | . . . Critical Strikes . | . . . Melee Attacks . | . . . Impact . | . . . Slashing . | . . . Piercing . | . . . Sneak Attacks . | . . . Combat Hostiles . | . . . Follow-up Attacks . | . . . Damage Inflicted 715 | . 669 46 Guns 459 | . 413 46 Cannons 242 | . 242 . Explosions . | . . . Melee . | . . . Ramming 14 | . 14 . Kinetic 349 | . 303 46 Thermal 352 | . 352 . Explosive . | . . . Electromagnetic . | . . . Impact . | . . . Slashing . | . . . Piercing . | . . . Highest Corruption . | . . . Average Corruption . | . . . Corruption Purged . | . . . Corruption Blocked . | . . . Overload Shots . | . . . Overflow Damage . | . . . Projectiles . | . . . Explosions . | . . . Melee . | . . . Knockbacks . | . . . Impact . | . . . Kinetic . | . . . Secondary . | . . . Self-Inflicted Damage 7 | . 7 . Shots . | . . . Rammed 1 | . 1 . Targets Rammed 1 | . 1 . Kicked . | . . . Crushed . | . . . Highest Temperature 220 | . 220 102 Average Temperature 69 | . 71 48 Received Heat Transfer 192 | . 174 18 Siege Activations . | . . . Robots Corrupted . | . . . Combat Hostiles . | . . . Parts Fried . | . . . Impact Corruptions . | . . . Robots Melted . | . . . Combat Hostiles . | . . . Parts Melted 2 | . 2 . Heat Transferred 768 | . 768 . Parts Sabotaged . | . . . Parts Stolen . | . . . Parts Stripped . | . . . Power Chain Reactions . | . . . Alert | -11 -10 -9 ------- Run | Yrd Mat Mat Peak Influence 337 | . 337 97 Initial 57 | . . 57 Average 113 | . 143 80 Maximum Alert Level 1 | . 1 . Low Security (%) 86 | 100 76 100 Level 1 13 | . 23 . Level 2 . | . . . Level 3 . | . . . Level 4 . | . . . Level 5 . | . . . High Security . | . . . Max Security . | . . . Squads Dispatched 1 | . 1 . Investigation 1 | . 1 . Extermination . | . . . Reinforcement . | . . . Assault . | . . . Garrison . | . . . Intercept . | . . . Searches Triggered . | . . . Construction Impeded . | . . . Haulers Reinforced . | . . . Active Scanning Responses . | . . . Cargo Convoy Interrupts . | . . . Stealth | -11 -10 -9 --------- Run | Yrd Mat Mat Distress Signals . | . . . Communications Jammed . | . . . Distress Signals . | . . . Times Spotted 16 | . 14 2 Peak Tracking Total 3 | . 3 2 Tactical Retreats 2 | . 2 . Traps | -11 -10 -9 ------- Run | Yrd Mat Mat Traps Triggered 1 | . 1 . Indirectly . | . . . Trap Hack Attempts . | . . . Triggered . | . . . Disarmed . | . . . Reprogrammed . | . . . Reused . | . . . Traps Extracted . | . . . Installed . | . . . Triggered . | . . . Machines | -11 -10 -9 ---------- Run | Yrd Mat Mat Machines Disabled . | . . . Max in Single Turn . | . . . Machines Repaired . | . . . Machines Dismantled . | . . . Machines Sabotaged . | . . . Overloaded Fab Kills . | . . . Hacking | -11 -10 -9 --------- Run | Yrd Mat Mat Machines Accessed 1 | . 1 . Terminals 1 | . 1 . Fabricators . | . . . Repair Stations . | . . . Recycling Units . | . . . Scanalyzers . | . . . Garrison Access . | . . . Total Hacks 1 | . 1 . Successful 1 | . 1 . Failed . | . . . Catastrophic . | . . . Database Lockouts . | . . . Manual . | . . . Terminals 1 | . 1 . Fabricators . | . . . Repair Stations . | . . . Recycling Units . | . . . Scanalyzers . | . . . Garrison Access . | . . . Terminal Hacks 1 | . 1 . Prototype ID Bank 1 | . 1 . Fabricator Hacks . | . . . Repair Station Hacks . | . . . Recycling Unit Hacks . | . . . Scanalyzer . | . . . Garrison Access Hacks . | . . . Unauthorized Hacks . | . . . Terminals . | . . . Fabricators . | . . . Repair Stations . | . . . Recycling Units . | . . . Scanalyzers . | . . . Garrison Access . | . . . Data Cores Recovered . | . . . Used . | . . . Hacking Detections . | . . . Full Trace Events . | . . . Feedback Events . | . . . Feedback Blocked . | . . . Robot Schematics Acquired . | . . . Robots Built . | . . . Authchips . | . . . Time . | . . . Total Robot Build Rating . | . . . Part Schematics Acquired . | . . . Parts Built . | . . . Authchips . | . . . Time . | . . . Total Part Build Rating . | . . . Parts Repaired . | . . . Time . | . . . Parts Recycled . | . . . Recycled Matter . | . . . Retrieved Matter . | . . . Retrieved Components . | . . . Parts Scanalyzed . | . . . Part Schematics Acquired . | . . . Parts Damaged . | . . . Bothacking | -11 -10 -9 ------------ Run | Yrd Mat Mat Used RIF Installer . | . . . Robots Hacked . | . . . Non-combat . | . . . Combat . | . . . Robot Hacks Applied . | . . . Relay Couplers Released . | . . . Fabnet Peak Effective % . | . . . Robots Rewired . | . . . Allies Hacked . | . . . Hacks Repelled . | . . . Allies | -11 -10 -9 -------- Run | Yrd Mat Mat Total Allies . | . . . Largest Group . | . . . Highest-Rated Group . | . . . Highest-Rated Ally . | . . . Total Orders . | . . . Ally Attacks . | . . . Total Damage . | . . . Kills . | . . . Allies Corrupted . | . . . Allies Melted . | . . . Intel | -11 -10 -9 ------- Run | Yrd Mat Mat Robot Analysis Total . | . . . Derelict Logs Recovered . | . . . Drone Launches . | . . . Drone Recoveries . | . . . Exploration | -11 -10 -9 ------------- Run | Yrd Mat Mat Turns Passed 1086 | 49 622 415 Spaces Moved 357 | 34 226 97 Core 6 | 6 . . Treads . | . . . Legs 154 | . 57 97 Wheels 197 | 28 169 . Hover . | . . . Flight . | . . . Fastest Speed 50 | 50 90 400 Average Speed 245 | 84 203 400 Slowest Speed 400 | 100 400 400 Overloaded Moves . | . . . Propulsion Burnouts . | . . . Robots Hopped . | . . . Cave-ins Triggered . | . . . Exploration Rate (%) 15 | 4 29 12 Regions Visited 2 Branch Regions . Pre-discovered Areas . | . . . Known Exits Taken . | . . . Unknown Exits Taken 2 | 1 1 . Scrap Searched . | . . . Spaces Dug . | . . . Terrain Destroyed . | . . . Melee . | . . . Projectile . | . . . AOE . | . . . Terrain Rammed . | . . . Walls Destroyed . | . . . Machines Disabled . | . . . Actions | -11 -10 -9 --------- Run | Yrd Mat Mat Total 492 | 54 320 118 Wait 25 | 5 17 3 Move 355 | 33 225 97 Hop . | . . . Pick Up 39 | 10 20 9 Fast Attach . | . . . Attach 9 | 6 1 2 Detach . | . . . Swap 13 | . 11 2 Drop 12 | . 10 2 Fire 38 | . 35 3 Melee . | . . . Ram 1 | . 1 . Kick . | . . . Crush . | . . . Escape Stasis . | . . . Rewire . | . . . Trap . | . . . Miscellaneous . | . . . Route ------- -11/Scrapyard -10/Materials -9/Materials History --------- Turn | Location | Event 27 | -11/Scrapyard | Discovered new exit (range 15) 50 | -11/Scrapyard | Entered Materials 302 | -10/Materials | Build established: Mutant 527 | -10/Materials | Discovered new exit (range 5) 672 | -10/Materials | Entered another Materials area 672 | -9/Materials | Evolved 2 slots: Power x1, Weapon x1 1087 | -9/Materials | Self-destructed Last Messages --------------- 00706_ Acquired Datajack. 00711_ Acquired Lgt. Ion Engine. 00720_ Acquired Hvy. EM Pulse Gun. 00779_ T-07 Excavator is excavating. 00799_ G-34 Mercenary destroyed. 00805_ T-07 Excavator is excavating. 00817_ Acquired Heat Sink. 00819_ Dropped Structural Scanner. 00820_ Acquired 43 matter. 00848_ U-05 Engineer lays Concrete. 00848_ Acquired Aluminum Leg. 00849_ U-05 Engineer lays Concrete. 00849_ Acquired 31 matter. 00857_ Acquired Ion Engine. 00859_ Dropped Lgt. Ion Engine. 00860_ Acquired 10 matter. 00891_ K-01 Serf collects debris. 00964_ Acquired Med. Matter Pod. 01003_ K-01 Serf collects debris. 01009_ Acquired 100 matter. Map ----- +----------------------------------------------------+ | | | | | | | | | | | | | | | | | | | | | | | | | | | | | | | | | ??????????????????????????????????????? | | ??????????####????????????????????????? | | ?????????# #???????########?????????? | | ?????????# #???????# [#?????????? | | #????????# #???????#[!] #?????????? | | ########## #???????#[] #?????????? | | ## #???????#!] #?????????? | | """ ##% #???????# #?????????? | | """"" ## ######????/ ??????????? | | """"" ###+## #######@###?????????? | | """"" / #?????????? | | """ # #?????????? | | ## ####?????????? | | ## #????????????? | | ## """ """ +????????????? | | ########## """ """ #????????????? | | ###### """ """ #????????????? | | ###### #????????????? | | T #????????????? | | #????????????? | | * [############# #????????????? | | ######???????# #????????????? | | ###??????????# #???????????? | | ##???????????# ????????????? | | #????????????# ????????????? | | #????????????# # ????????????? | | #????????????? ??####????????????? | | #??????????????????????????????????? | | ??????????????????????????????????? | | ??????????????????????????????????? | | ?????????????????????????????????? | | ?????????????????????????????????? | | [????????????????????????????????? | | ?????????????????????????????????? | +----------------------------------------------------+ Best States ------------- Heat Dissipation 38 Energy Generation 15 Energy Capacity 275 Matter Stores 300 Matter Capacity 300 Sight Range 16 Terrain Scan Density 10 Evasion (%) 50 Item Schematics ----------------- None Robot Schematics ------------------ None Fabricated ------------ Nothing Alien Tech Used ----------------- None Achievements -------------- Tank Challenges ------------ None Game ------ Seed LaserLatentWarhead Manual? 0 Play Time 00:20:34 Cumulative 2.2 hours Start 2024.08.08 @ 21:34:57 End 2025.03.29 @ 14:20:48 Sessions 3 Manual Loads 0 Difficulty Rogue Special Mode None Game No. 4 Rogue 4 Adventurer 0 Explorer 0 Win Type - Total 0 Types 0/0/0/0/0/0/0/0/0 Lore% 0 Gallery% 4 Achievement% 6 Wizard Run 0 Options --------- Layout 1 ASCII 0 Keyboard 0 Movement Mouse Keybinds 0 Fullscreen 1 Font 24/Smallcaps Map View 50x35 Zoom Use 0% Tactical HUD 1 Map Filters NONE Filters NONE Steam 1 RUN: 2a381fe4-640d-465f-bac2-18e0709e82ad